bitfinex/quotes_ETHUSD_20251021
["timestamp","ask_amount","ask_price","bid_price","bid_amount"]
[1761075318692,0.1038,4012.9,4011.9,2.49258456]
[1761075318898,0.1038,4012.9,4012.3,2.49227616]
[1761075319069,0.1038,4012.9,4012.4,2.49226546]
[1761075319464,0.1038,4012.9,4012.5,2.49219847]
[1761075319989,0.1048,4012.9,4012.5,2.49219847]
[1761075321063,0.1048,4012.9,4012.4,2.49225234]
[1761075321476,0.1048,4012.9,4012.5,2.49216431]
[1761075321764,0.001,4012.9,4012.1,2.7160603]
[1761075321964,0.001,4012.9,4012.5,2.49216474]
[1761075322214,0.001,4012.9,4012.2,0.37270188]
[1761075322504,0.1085,4012.9,4012.2,0.37270188]
[1761075322798,0.001,4012.9,4012.8,2.49202551]
[1761075323171,0.001,4012.9,4012.8,2.99044839]
[1761075324268,0.001,4012.9,4012.8,2.49202551]
[1761075326061,0.001,4012.9,4012.2,0.84460188]
[1761075326062,0.1095,4012.9,4012.2,0.37270188]
[1761075326281,0.1095,4012.9,4012.7,2.49203311]
[1761075326457,0.1095,4012.9,4012.4,2.49226682]
[1761075326892,0.1095,4012.9,4012.2,0.37270188]
[1761075327084,0.1095,4012.9,4012.0,2.49249574]
[1761075327282,0.1095,4012.9,4011.7,3.185]
[1761075327470,0.1095,4012.9,4011.5,3.186]
[1761075327471,2.60146947,4012.9,4011.5,3.186]
[1761075327662,0.2209,4011.8,4011.5,3.186]
[1761075327864,0.2209,4011.8,4011.7,2.49270882]
[1761075328268,0.2198,4012.1,4011.9,2.49256383]
[1761075328463,0.3303,4012.1,4011.6,0.56788883]
[1761075328670,0.3303,4012.1,4011.6,2.49271919]
[1761075328671,0.1105,4012.0,4011.6,2.49271919]
[1761075328870,0.1105,4012.0,4011.7,2.49265254]
[1761075329204,0.1105,4012.0,4011.8,2.49264067]
[1761075330303,0.1105,4012.0,4011.6,2.49273292]
[1761075330602,0.1105,4012.0,4011.8,2.49264594]
[1761075331401,0.1105,4012.0,4011.0,5.67913394]
[1761075331605,0.1105,4012.0,4011.6,2.49273097]
[1761075331913,0.1105,4012.0,4011.1,2.46843489]
[1761075332114,0.1105,4012.0,4011.8,2.49264307]
[1761075332315,0.1105,4012.0,4011.7,2.49269611]
[1761075332671,0.1105,4012.0,4011.8,2.49263432]
[1761075332888,0.2198,4012.1,4011.9,2.49258456]
[1761075333117,0.1105,4012.0,4011.9,2.49258456]
[1761075333600,0.1105,4012.0,4011.7,2.49266601]
[1761075333910,0.1105,4012.0,4011.8,2.49262727]
[1761075334200,0.2198,4012.1,4011.9,2.49258456]
[1761075334617,0.2198,4012.1,4011.9,2.49252578]
[1761075334772,3.2945,4012.4,4011.7,2.49268026]
[1761075334969,3.2945,4012.4,4011.9,2.49254459]
[1761075335213,0.1105,4012.4,4012.1,2.4924603]
[1761075335577,0.1105,4012.4,4012.1,2.49240298]
[1761075335776,0.1105,4012.4,4012.2,2.49234018]
[1761075336190,3.183,4012.5,4012.3,2.49232375]
[1761075337509,0.1115,4012.4,4012.1,2.49241027]
[1761075338415,3.183,4012.5,4012.2,2.49238709]
[1761075338612,3.183,4012.5,4012.0,2.49248397]
[1761075338838,3.2945,4012.5,4012.2,2.49237346]
[1761075339887,3.2945,4012.5,4012.3,2.49232429]
[1761075340228,3.183,4012.5,4012.3,2.49232429]
[1761075340780,3.183,4012.5,4012.1,2.49241074]
[1761075340981,0.1115,4012.4,4012.1,2.49241074]
[1761075342211,0.1115,4012.4,4012.0,2.49250392]
[1761075342518,0.1115,4012.4,4011.8,2.49263743]
[1761075342960,3.183,4012.5,4012.2,2.49238099]
[1761075343242,3.183,4012.5,4012.1,2.49244517]
[1761075343434,3.183,4012.5,4012.1,2.49245081]
[1761075343633,0.1115,4012.4,4012.1,2.49245081]
[1761075346247,0.1115,4012.4,4012.0,2.49251864]
[1761075346428,0.1115,4012.4,4012.1,2.49244253]
[1761075347064,3.183,4012.5,4012.2,2.49238844]
[1761075347345,3.183,4012.5,4012.2,2.49235727]
[1761075347734,0.1115,4012.4,4012.2,2.49235727]
[1761075348251,0.1115,4012.4,4012.1,2.49245634]
[1761075348434,3.183,4012.5,4012.2,2.49235182]
[1761075348628,3.183,4012.5,4012.3,2.49233095]
[1761075349339,3.183,4012.5,4011.8,0.4719]
[1761075349544,3.183,4012.5,4012.2,2.49238897]
[1761075349849,3.2945,4012.5,4012.1,2.49244999]
[1761075350447,3.2945,4012.5,4012.2,2.49235173]
[1761075351462,3.183,4012.5,4012.3,2.49232814]
[1761075352363,3.183,4012.5,4012.2,2.49238256]
[1761075352539,3.183,4012.5,4012.2,2.49234132]
[1761075352740,0.1115,4012.4,4011.8,0.99598067]
[1761075352946,0.1115,4012.4,4012.2,2.49239018]
[1761075353137,3.183,4012.5,4012.2,2.49234772]
[1761075353533,3.2945,4012.5,4012.2,2.49234772]
[1761075354062,0.1115,4012.4,4011.9,1.04838873]
[1761075354264,0.1115,4012.4,4012.0,2.49252243]
[1761075354471,0.1115,4012.4,4012.2,2.49238923]
[1761075355160,0.1115,4012.4,4012.2,2.49239221]
[1761075355464,3.184,4012.5,4012.3,2.49231303]
[1761075356262,0.001,4012.5,4012.3,2.49233514]
[1761075357477,0.001,4012.5,4012.4,2.49227395]
[1761075357836,0.001,4012.5,4012.3,2.4923196]
[1761075358838,0.1125,4012.5,4012.3,2.4923196]
[1761075359252,0.1125,4012.5,4012.2,2.49237767]
[1761075359843,0.001,4012.5,4012.2,2.49237767]
[1761075360157,0.001,4012.5,4012.2,2.49238291]
[1761075360361,0.001,4012.5,4012.3,0.4278]
[1761075360552,0.001,4012.5,4012.4,0.02492273]
[1761075361073,0.001,4012.5,4012.3,0.4278]
[1761075361280,0.001,4012.5,4012.3,2.49232252]
[1761075361441,0.001,4012.5,4012.4,2.49227395]
[1761075361644,0.001,4012.5,4012.2,0.25173087]
[1761075361847,0.001,4012.5,4012.4,4.04747395]
[1761075362045,0.001,4012.5,4012.4,5.71819773]
[1761075362242,0.001,4012.5,4012.4,12.45290439]
[1761075362555,0.001,4012.5,4012.4,8.89919773]
[1761075363054,0.001,4012.5,4012.4,9.32699773]
[1761075363361,0.001,4012.5,4012.4,15.63390439]
[1761075364446,0.001,4012.5,4012.4,14.07870439]
[1761075365069,0.001,4012.5,4012.4,15.63390439]
[1761075366463,0.001,4012.5,4012.4,19.63390439]
[1761075370984,0.001,4012.5,4012.4,9.71819773]
[1761075371291,0.001,4012.5,4012.4,15.63390439]
[1761075372790,0.001,4012.5,4012.4,16.89133145]
[1761075372954,0.001,4012.5,4012.4,16.46353145]
[1761075373474,0.001,4012.5,4012.4,16.89133145]
[1761075375050,0.001,4012.5,4012.4,20.89133145]
[1761075380905,0.001,4012.9,4012.8,2.49202551]
[1761075381105,0.2086,4014.3,4012.8,2.49202551]
[1761075381106,0.2076,4014.6,4013.7,2.49146672]
[1761075381418,0.66686927,4015.5,4013.5,2.49154417]
[1761075381419,0.09987528,4015.9,4015.2,2.49048461]
[1761075381602,0.09987528,4015.9,4015.2,3.182]
[1761075381911,0.2032,4017.0,4015.7,2.49022346]
[1761075382104,0.50688,4016.9,4015.7,2.49022346]
[1761075382305,0.53627324,4016.8,4015.5,2.49034208]
[1761075382506,0.53627324,4016.8,4015.7,2.49020479]
[1761075382799,1.5552,4016.6,4015.3,2.49042859]
[1761075383004,1.5552,4016.6,4015.3,2.49045914]
[1761075383206,1.5552,4016.6,4015.4,2.4903972]
[1761075383509,0.50688,4016.9,4015.6,2.49022933]
[1761075383700,1.5552,4016.6,4015.4,2.49039147]
[1761075384107,1.5552,4016.7,4015.5,2.49034438]
[1761075384337,1.5552,4016.7,4015.2,3.182]
[1761075384537,1.5552,4016.5,4015.4,2.49041171]
[1761075385040,1.5552,4016.5,4015.2,3.182]
[1761075385241,1.5552,4016.5,4015.8,2.49015383]
[1761075385458,1.5552,4016.5,4015.9,2.49010184]
[1761075385776,1.5552,4016.5,4015.7,2.49018694]
[1761075385980,1.5552,4016.5,4015.8,2.4901575]
[1761075386568,1.5552,4016.5,4015.9,2.49010184]
[1761075387060,1.5552,4016.5,4015.8,2.49011377]
[1761075387259,1.5552,4016.5,4015.7,2.49022064]
[1761075387669,0.2053,4015.8,4015.7,2.49022064]
[1761075387887,0.2053,4015.8,4015.2,3.182]
[1761075388055,0.2053,4015.8,4014.6,7.56433372]
[1761075388259,0.2053,4015.8,4014.7,0.83131328]
[1761075388484,0.1109,4014.7,4014.6,5.67190818]
[1761075388645,0.2053,4015.8,4015.1,2.49057721]
[1761075388839,0.2053,4015.8,4015.0,2.49065951]
[1761075389077,0.2053,4015.8,4014.6,3.181]
[1761075389078,0.2053,4015.8,4014.6,10.74533372]
[1761075389372,0.2053,4015.8,4015.0,2.49060356]
[1761075389577,0.2053,4015.8,4015.1,2.49058606]
[1761075389963,0.2053,4015.8,4014.6,3.181]
[1761075390146,0.1109,4014.7,4013.9,3.18]
[1761075390351,0.1109,4014.7,4014.0,0.318]
[1761075390552,0.1109,4014.7,4014.0,2.8092608]
[1761075390770,0.1109,4014.7,4013.6,3.181]
[1761075391884,0.1109,4014.7,4013.6,2.49146678]
[1761075392196,0.1109,4014.7,4013.3,3.181]
[1761075392506,10.311347,4014.6,4013.7,2.49146159]
[1761075393005,0.1571,4013.8,4013.7,2.49146159]
[1761075393567,0.1571,4013.8,4013.6,2.49152808]
[1761075393863,0.1571,4013.8,4013.5,2.49157558]
[1761075394063,0.1571,4013.8,4013.6,2.49151486]
[1761075394668,0.1571,4013.8,4013.4,2.49164795]
[1761075395177,0.1571,4013.8,4013.6,2.49147885]
[1761075396067,0.50688,4014.4,4013.7,2.49146672]
[1761075396397,0.1109,4014.7,4013.9,2.49134258]
[1761075396577,0.1109,4014.7,4014.5,2.49092583]
[1761075396763,0.1109,4014.7,4014.0,0.0249128]
[1761075396764,0.1109,4014.7,4014.6,2.49090818]
[1761075396965,0.1109,4014.7,4014.3,2.49109298]
[1761075397164,0.1109,4014.7,4014.4,2.49101879]
[1761075397775,0.1109,4014.7,4014.2,2.49113598]
[1761075398309,0.1109,4014.7,4014.3,2.49107311]
[1761075398599,0.1109,4014.7,4014.4,2.49102719]
[1761075399197,0.1109,4014.7,4014.3,2.49107939]
[1761075399723,0.1109,4014.7,4014.2,2.49114098]
[1761075399921,0.1109,4014.7,4014.3,2.49108712]
[1761075400286,0.1109,4014.7,4014.4,2.49100972]
[1761075400489,0.1109,4014.7,4014.2,2.49109736]
[1761075400689,0.1109,4014.7,4014.3,2.49107739]
[1761075401324,0.1109,4014.7,4014.2,2.49115102]
[1761075401898,0.1109,4014.7,4014.3,2.49108678]
[1761075402996,3.18,4015.2,4014.4,0.02491032]
[1761075403295,3.18,4015.2,4013.8,0.66345768]
[1761075403524,3.18,4015.2,4014.5,2.49095899]
[1761075404026,3.18,4015.2,4014.6,2.49089538]
[1761075404527,3.18,4015.2,4014.0,2.49128051]
[1761075404824,3.18,4015.2,4014.8,2.49077556]
[1761075405821,3.181,4015.2,4014.9,2.49067529]
[1761075406026,3.181,4015.2,4015.1,2.49059799]
[1761075407029,3.181,4015.2,4015.1,3.17329799]
[1761075407227,0.001,4015.2,4015.1,2.70859799]
[1761075407428,0.001,4015.2,4015.1,3.05699575]
[1761075407929,0.001,4015.2,4015.1,3.52169575]
[1761075408120,0.001,4015.2,4015.1,3.05699575]
[1761075408522,0.001,4015.2,4014.8,2.49075999]
[1761075408829,0.001,4015.2,4014.8,2.49077094]
[1761075409028,0.001,4015.2,4014.3,3.182]
[1761075409335,0.001,4015.2,4015.1,2.49059799]
[1761075411728,0.001,4015.2,4015.1,2.98872998]
[1761075412306,0.001,4015.2,4014.9,2.49072192]
[1761075412307,0.001,4015.2,4014.9,2.4906628]
[1761075412913,0.001,4015.2,4014.8,2.49075287]
[1761075413411,0.001,4015.2,4014.9,2.49071149]
[1761075414009,0.001,4015.2,4014.3,2.49103932]
[1761075414328,0.001,4015.2,4014.2,3.183]
[1761075414529,0.001,4015.2,4014.5,2.4909576]
[1761075414922,0.1581,4014.6,4014.5,2.4909576]
[1761075415233,0.1581,4014.6,4014.4,2.49099065]
[1761075415728,0.1581,4014.6,4014.5,2.49097023]
[1761075416931,0.1581,4014.6,4013.9,3.183]
[1761075417133,0.1581,4014.6,4014.2,2.49109701]
[1761075417598,0.1581,4014.6,4014.1,2.4912111]
[1761075418061,0.1581,4014.6,4014.2,2.49113687]
[1761075418320,0.1581,4014.6,4014.0,2.49127986]
[1761075418530,0.1581,4014.6,4014.3,2.49109246]
[1761075418732,0.1581,4014.6,4013.9,0.36481]
[1761075418733,0.1581,4015.0,4013.9,0.36481]
[1761075419038,0.1581,4015.0,4014.4,2.49099229]
[1761075419701,0.1581,4015.0,4014.1,0.2337]
[1761075419702,0.1581,4015.0,4014.1,2.49121516]
[1761075420328,0.1581,4015.0,4014.4,2.49101812]
[1761075420912,0.1581,4015.0,4014.2,0.48801156]
[1761075421135,3.184,4015.2,4014.4,2.49098223]
[1761075421431,3.184,4015.2,4015.1,2.49059799]
[1761075421808,3.184,4015.2,4015.1,3.18739799]
[1761075421809,0.001,4015.2,4015.1,3.18739799]
[1761075423134,0.001,4015.2,4015.1,2.72429799]
[1761075423450,0.001,4015.2,4014.7,0.2337]
[1761075423601,0.001,4015.2,4014.6,0.002]
[1761075423602,0.001,4015.2,4014.8,2.49072577]
[1761075423807,0.001,4015.2,4014.9,2.4906975]
[1761075424110,0.001,4015.2,4015.1,2.49059799]
[1761075424300,0.001,4015.2,4015.1,2.72429799]
[1761075424504,0.001,4015.2,4015.1,3.18739799]
[1761075425111,0.001,4015.2,4015.1,2.49059799]
[1761075425738,0.001,4015.2,4014.6,0.002]
[1761075425957,0.001,4015.2,4014.6,0.61571538]
[1761075426105,0.001,4015.2,4015.0,2.49061991]
[1761075426306,0.001,4015.2,4015.1,2.49059799]
[1761075427042,0.001,4015.2,4014.6,0.61571538]
[1761075427207,0.001,4015.2,4015.0,2.49061418]
[1761075427925,0.001,4015.2,4015.1,2.49059799]
[1761075428116,0.001,4015.2,4014.6,2.49285244]
[1761075428442,0.001,4015.2,4014.9,2.49071569]
[1761075428734,0.001,4015.2,4014.7,2.49084614]
[1761075428735,0.001,4015.2,4015.0,2.49061304]
[1761075429117,0.001,4015.2,4015.0,2.49065398]
[1761075429321,0.001,4015.2,4014.8,2.49072999]
[1761075429523,0.001,4015.2,4014.7,2.49081252]
[1761075429747,0.001,4015.2,4014.9,2.49068365]
[1761075430414,0.001,4015.2,4015.0,2.49065486]
[1761075430755,0.001,4015.2,4014.8,2.49072417]
[1761075431052,0.001,4015.2,4014.9,2.4907013]
[1761075431216,0.001,4015.2,4014.8,2.4907729]
[1761075431614,0.001,4015.2,4014.6,0.002]
[1761075431815,0.001,4015.2,4014.6,2.49286833]
[1761075431816,0.2555,4015.1,4014.6,2.49286833]
[1761075432214,0.2555,4015.1,4014.7,2.49084165]
[1761075432662,0.2555,4015.1,4014.6,0.002]
[1761075435150,2.34818985,4015.1,4014.6,0.002]
[1761075435347,0.53748985,4015.0,4014.6,0.002]
[1761075435567,11.31303,4014.7,4014.6,0.002]
[1761075435764,11.58203385,4014.7,4014.6,0.002]
[1761075435916,14.17187999,4014.7,4014.6,0.002]
[1761075436315,17.35087999,4014.7,4014.6,0.002]
[1761075436728,18.56046999,4014.7,4014.6,0.002]
[1761075437446,16.06962385,4014.7,4014.6,0.002]
[1761075437649,0.74917497,4014.9,4014.6,0.002]
[1761075437817,3.18,4015.7,4014.7,2.95392274]
[1761075438021,3.18,4015.7,4015.1,2.49059799]
[1761075438249,1.5552,4015.6,4015.1,2.49059799]
[1761075438611,3.18,4015.7,4015.1,2.49059799]
[1761075438822,1.5552,4015.6,4015.1,2.49059799]
[1761075439017,3.18,4015.7,4015.1,2.71269799]
[1761075439255,3.18,4015.7,4015.1,3.15209799]
[1761075440252,3.18,4015.7,4015.1,2.71269799]
[1761075440454,3.18,4015.7,4015.1,2.49059799]
[1761075440950,0.0996,4015.6,4015.1,2.49059799]
[1761075441653,3.18,4015.7,4015.1,2.49059799]
[1761075441826,3.18,4015.7,4015.1,2.71269799]
[1761075442022,3.18,4015.7,4015.1,3.15209799]
[1761075442718,3.18,4015.7,4015.1,3.77084064]
[1761075443055,3.18,4015.7,4015.1,3.74593467]
[1761075443554,3.18,4015.7,4015.1,3.77084064]
[1761075443856,3.18,4015.7,4015.1,3.74593467]
[1761075444151,0.001,4015.7,4015.1,3.74593467]
[1761075444373,0.001,4015.7,4015.1,3.77084064]
[1761075444727,0.001,4015.7,4015.1,3.74593467]
[1761075445449,0.1577,4015.6,4015.1,2.49059799]
[1761075445653,0.1577,4015.6,4014.9,2.49071639]
[1761075445817,0.1577,4015.6,4014.6,0.002]
[1761075446021,0.099,4015.1,4014.6,0.002]
[1761075446420,0.157,4014.7,4014.6,0.002]
[1761075447019,0.099,4015.1,4014.6,0.002]
[1761075447954,0.0996,4015.1,4014.6,0.002]
[1761075454477,0.50688,4015.1,4014.6,0.002]
[1761075454674,0.50688,4015.1,4014.6,2.49290236]
[1761075454975,0.50688,4015.1,4014.6,0.002]
[1761075456399,0.001,4015.2,4014.8,2.49076253]
[1761075456905,1.5562,4015.2,4014.6,0.002]
[1761075457406,0.1558,4014.7,4014.6,0.002]
[1761075457615,30.02923014,4014.7,4014.6,0.002]
[1761075457906,27.27702737,4014.7,4014.6,0.002]
[1761075458070,24.91154737,4014.7,4014.6,0.002]
[1761075458265,25.58251394,4014.7,4014.6,0.002]
[1761075458578,25.74244437,4014.7,4014.6,0.002]
[1761075458778,25.47168937,4014.7,4014.6,0.002]
[1761075458981,25.25313737,4014.7,4014.6,0.002]
[1761075459300,25.92376429,4014.7,4014.6,0.002]
[1761075459685,25.84031629,4014.7,4014.6,0.002]
[1761075460608,23.41975137,4014.7,4014.6,0.002]
[1761075460772,23.42000337,4014.7,4014.6,0.002]
[1761075461721,8.52549737,4014.7,4014.6,0.002]
[1761075462014,23.78451337,4014.7,4014.6,0.002]
[1761075462372,24.1752107,4014.7,4014.6,0.002]
[1761075462904,23.76830137,4014.7,4014.6,0.002]
[1761075463718,24.43892829,4014.7,4014.6,0.002]
[1761075463882,35.01034929,4014.7,4014.6,0.002]
[1761075464090,34.33972237,4014.7,4014.6,0.002]
[1761075464698,33.76267829,4014.7,4014.6,0.002]
[1761075464895,33.83105629,4014.7,4014.6,0.002]
[1761075465788,39.58684511,4014.7,4014.6,0.002]
[1761075466122,38.91621819,4014.7,4014.6,0.002]
[1761075467289,39.01613188,4014.7,4014.6,0.002]
[1761075467490,40.19871738,4014.7,4014.6,0.002]
[1761075467692,41.88271738,4014.7,4014.6,0.002]
[1761075467922,40.98914098,4014.7,4014.6,0.002]
[1761075468296,40.98914098,4014.7,4014.1,0.002]
[1761075468297,2.99803639,4014.2,4014.1,0.002]
[1761075468629,34.55348465,4013.8,4013.1,0.002]
[1761075468792,9.45077997,4013.8,4013.1,0.002]
[1761075468992,39.70697997,4013.8,4013.1,0.002]
[1761075469193,38.81576498,4013.8,4013.1,0.002]
[1761075469402,39.19473239,4013.8,4013.1,0.002]
[1761075470893,39.48374149,4013.8,4013.1,0.002]
[1761075471193,38.81576498,4013.8,4013.1,0.002]
[1761075471924,38.52675588,4013.8,4013.1,0.002]
[1761075472924,8.52675588,4013.8,4013.1,0.002]
[1761075473095,38.52675588,4013.8,4013.1,0.002]
[1761075474028,38.91752703,4013.8,4013.1,0.002]
[1761075474226,39.01746993,4013.8,4013.1,0.002]
[1761075475228,39.01746993,4013.8,4013.2,0.002]
[1761075475599,39.68544644,4013.8,4013.2,0.002]
[1761075475798,39.01746993,4013.8,4013.2,0.002]
[1761075476001,40.07567868,4013.8,4013.2,0.002]
[1761075476210,39.68485038,4013.8,4013.2,0.002]
[1761075476430,39.01746993,4013.8,4013.2,0.002]
[1761075476598,39.68485038,4013.8,4013.2,0.002]
[1761075478710,45.99391154,4013.8,4013.2,0.002]
[1761075478910,45.61554019,4013.8,4013.2,0.002]
[1761075479110,32.99859504,4013.3,4013.2,0.002]
[1761075479407,44.67892743,4013.3,4013.2,0.002]
[1761075479831,44.77887708,4013.3,4013.2,0.002]
[1761075480039,45.7348993,4013.3,4013.2,0.002]
[1761075480245,45.1934294,4013.3,4013.2,0.002]
[1761075480951,44.9044203,4013.3,4013.2,0.002]
[1761075481132,45.40910013,4013.3,4013.2,0.002]
[1761075481338,23.32499056,4013.3,4013.2,0.002]
[1761075481547,8.13494123,4013.3,4013.2,0.002]
[1761075481837,11.13353627,4013.3,4013.2,0.002]
[1761075482045,11.35608734,4013.3,4013.2,0.002]
[1761075482356,29.04375834,4013.3,4013.2,0.002]
[1761075482911,29.14370524,4013.3,4013.2,0.002]
[1761075483116,38.59436424,4013.3,4013.2,0.002]
[1761075484460,34.04406801,4013.3,4013.2,0.002]
[1761075485258,34.84753201,4013.3,4013.2,0.002]
[1761075485773,34.39118101,4013.3,4013.2,0.002]
[1761075485978,33.00765801,4013.3,4013.2,0.002]
[1761075486140,36.94085077,4013.3,4013.2,0.002]
[1761075486636,41.71142677,4013.3,4013.2,0.002]
[1761075487140,15.22523001,4013.3,4013.2,0.002]
[1761075487338,45.22523001,4013.3,4013.2,0.002]
[1761075488676,39.17423911,4013.3,4013.2,0.002]
[1761075489744,39.56510614,4013.3,4013.2,0.002]
[1761075490442,39.27609704,4013.3,4013.2,0.002]
[1761075491147,40.61291953,4013.3,4013.2,0.002]
[1761075491852,40.2220525,4013.3,4013.2,0.002]
[1761075493164,38.88523001,4013.3,4013.2,0.002]
[1761075494804,46.84742068,4013.3,4013.2,0.002]
[1761075497419,16.84742068,4013.3,4013.2,0.002]
[1761075497627,46.84742068,4013.3,4013.2,0.002]
[1761075498213,4.55385713,4013.2,4013.1,0.002]
[1761075498385,35.47893746,4013.2,4013.1,0.002]
[1761075499004,41.71993746,4013.2,4013.1,0.002]
[1761075499386,11.71993746,4013.2,4013.1,0.002]
[1761075499620,41.71993746,4013.2,4013.1,0.002]
[1761075500416,11.71993746,4013.2,4013.1,0.002]
[1761075500720,41.71993746,4013.2,4013.1,0.002]
[1761075501104,41.81893746,4013.2,4013.1,0.002]
[1761075501622,44.61192836,4013.2,4013.1,0.6899]
[1761075501817,38.27192836,4013.2,4013.1,0.002]
[1761075502186,38.66053746,4013.2,4013.1,0.002]
[1761075504910,40.34553746,4013.2,4013.1,0.002]
[1761075505419,40.05652836,4013.2,4013.1,0.002]
[1761075505622,39.95692836,4013.2,4013.1,0.002]
[1761075506222,35.09092836,4013.2,4013.1,0.002]
[1761075506392,37.76404836,4013.2,4013.1,0.6645]
[1761075506587,38.27092836,4013.2,4013.1,0.6645]
[1761075507319,3.59190429,4013.2,4013.1,0.6645]
[1761075507516,4.61389829,4013.2,4013.1,0.6645]
[1761075507818,11.44203929,4013.2,4013.1,0.6645]
[1761075508024,3.56033523,4013.2,4013.1,0.6645]
[1761075508189,5.71707123,4013.2,4013.1,0.6645]
[1761075508404,0.53707123,4013.2,4013.1,0.6645]
[1761075508606,3.18,4013.5,4013.1,0.6645]
[1761075508953,3.18,4013.5,4013.2,0.4476]
[1761075509307,3.18,4013.5,4013.2,1.01242492]
[1761075509508,3.18,4013.5,4013.2,0.4476]
[1761075509741,3.18,4013.5,4013.3,0.4476]
[1761075511030,3.18,4013.5,4013.4,2.49165296]
[1761075511550,3.18,4013.5,4013.4,2.93925296]
[1761075511761,0.001,4013.6,4013.5,2.49159088]
[1761075511912,3.181,4013.6,4013.5,4.24190051]
[1761075512754,3.181,4013.6,4013.5,1.75030963]
[1761075513054,0.001,4013.6,4013.5,0.4476]
[1761075519778,0.50788,4013.6,4013.5,0.4476]
[1761075520442,0.001,4013.6,4013.5,0.4476]
[1761075527384,0.001,4013.6,4013.5,2.93919088]
[1761075527574,0.001,4013.6,4013.5,0.4476]
[1761075527766,0.001,4013.6,4013.5,2.93919088]
[1761075528161,0.001,4013.6,4013.5,0.4476]
[1761075531583,0.001,4013.6,4013.3,2.49166243]
[1761075531780,0.001,4013.6,4013.4,0.4476]
[1761075533315,0.001,4013.6,4013.4,0.76322543]
[1761075533517,0.001,4013.6,4013.4,3.25483306]
[1761075533685,0.001,4013.6,4013.5,0.4522]
[1761075535817,0.001,4013.6,4013.5,2.94379088]
[1761075535988,0.001,4013.6,4013.5,0.4522]
[1761075539538,0.001,4013.6,4013.1,0.2169]
[1761075539539,2.09421151,4013.6,4013.1,0.2169]
[1761075539705,0.53801151,4013.5,4013.2,0.4522]
[1761075540343,0.001,4013.6,4013.2,0.76830292]
[1761075540633,3.178,4013.5,4013.2,0.4522]
[1761075540930,3.178,4013.5,4013.3,0.4522]
[1761075541904,3.178,4013.5,4013.3,2.94390709]
[1761075542110,3.178,4013.5,4013.3,0.4522]
[1761075542305,3.178,4013.5,4013.4,0.4522]
[1761075543237,3.178,4013.5,4013.1,0.2169]
[1761075543434,3.178,4013.5,4013.2,0.4522]
[1761075545512,3.178,4013.5,4013.2,2.94396182]
[1761075545916,3.178,4013.5,4013.3,0.4522]
[1761075547933,3.178,4013.5,4013.3,2.94390397]
[1761075548136,3.178,4013.5,4013.3,0.4522]
[1761075548343,2.81984591,4013.4,4012.8,0.002]
[1761075548645,2.81984591,4013.4,4011.6,1.33300225]
[1761075548646,32.99965096,4011.6,4009.6,0.2373]
[1761075548845,42.12672681,4010.7,4009.2,0.2373]
[1761075549141,33.00045903,4010.3,4009.0,0.2373]
[1761075549308,47.21002759,4010.3,4009.0,0.2373]
[1761075549510,46.04147941,4010.3,4009.0,0.2373]
[1761075549732,42.70490541,4010.3,4009.0,0.2373]
[1761075550105,38.9706395,4010.3,4009.0,0.2373]
[1761075550309,3.93447691,4010.3,4009.3,2.49418902]
[1761075550528,2.75755348,4010.3,4009.0,0.2373]
[1761075550740,5.2852009,4010.3,4009.7,0.4522]
[1761075552317,7.77877993,4010.3,4009.7,0.4522]
[1761075553142,5.2852009,4010.3,4009.7,0.4522]
[1761075553353,7.77877993,4010.3,4009.7,0.4522]
[1761075554721,11.60193388,4010.3,4009.7,0.4522]
[1761075555339,11.06693298,4010.3,4009.7,0.4522]
[1761075555930,1.5552,4010.3,4009.7,0.4522]
[1761075556132,0.66735258,4011.8,4011.5,2.4928331]
[1761075556448,2.28967196,4013.0,4011.1,2.49304097]
[1761075556449,0.001,4013.6,4013.3,2.49171504]
[1761075556752,0.001,4013.6,4011.9,1.7925]
[1761075556753,0.001,4013.6,4013.5,6.42373298]
[1761075557066,0.001,4013.6,4013.2,6.31673298]
[1761075557261,2.029105,4013.5,4013.1,0.107]
[1761075557463,0.001,4013.6,4013.1,0.107]
[1761075557850,3.227,4013.5,4013.2,2.94396992]
[1761075558040,3.227,4013.5,4013.2,0.4522]
[1761075558359,3.227,4013.5,4013.3,2.94389228]
[1761075559238,0.001,4013.6,4013.4,2.49165296]
[1761075559567,0.001,4013.6,4013.3,2.49170147]
[1761075560521,0.001,4013.6,4013.3,3.04413908]
[1761075560728,0.001,4013.6,4013.5,2.49159088]
[1761075560941,0.001,4013.6,4013.4,0.4338]
[1761075561146,0.001,4013.6,4013.2,2.49177713]
[1761075561646,0.001,4013.6,4013.1,0.5408]
[1761075561859,0.001,4013.6,4013.1,0.107]
[1761075562061,0.4484,4013.6,4011.7,2.49269913]
[1761075562346,2.06208,4013.1,4011.8,2.49260803]
[1761075562545,2.06208,4013.1,4011.9,0.5536708]
[1761075562546,4.846936,4012.9,4011.9,0.5536708]
[1761075562746,3.225,4013.0,4012.7,0.002]
[1761075563280,3.225,4013.0,4012.7,2.92788696]
[1761075563644,3.225,4013.0,4012.8,2.4920015]
[1761075564262,3.225,4013.0,4012.8,2.452935]
[1761075564701,3.225,4013.0,4012.7,0.002]
[1761075565181,3.225,4013.0,4012.7,2.4940846]
[1761075565873,3.225,4013.0,4012.7,0.002]
[1761075566384,3.225,4013.0,4012.7,2.49407986]
[1761075567263,3.225,4013.0,4012.7,0.002]
[1761075567784,3.225,4013.0,4012.7,2.494077]
[1761075568888,3.225,4013.0,4012.7,0.002]